Organisation Name,Department where exp. Incurred,Service Category Label,Supplier (Beneficiary),Purpose of Expenditure,Procurement (Merchant) Category,Purchase Date,Settlement Date,Transaction Number,Net Amount (�)
Stockport MBC,Corporate and Support Services,Central Support Costs,MIRO.COM,Information and Communications Technology,Information Communication Technology  ,24.11.2021,16.12.2021,GPC11210000001,210.75
Stockport MBC,Corporate and Support Services,Central Support Costs,FASTHOSTS INTERNET,Information and Communications Technology,Information Communication Technology  ,15.11.2021,16.12.2021,GPC11210000002,25.18
Stockport MBC,Corporate and Support Services,Central Support Costs,FASTHOSTS INTERNET,Information and Communications Technology,Information Communication Technology  ,15.11.2021,16.12.2021,GPC11210000003,25.18
Stockport MBC,Corporate and Support Services,Central Support Costs,GITHUB,Information and Communications Technology,Information Communication Technology  ,14.11.2021,16.12.2021,GPC11210000004,77.10
Stockport MBC,Corporate and Support Services,Central Support Costs,AUTH0.COM,Information and Communications Technology,Information Communication Technology  ,13.11.2021,16.12.2021,GPC11210000005,9.26
Stockport MBC,Corporate and Support Services,Central Support Costs,WWW.CONTENTFUL.COM,Information and Communications Technology,Information Communication Technology  ,09.11.2021,16.12.2021,GPC11210000006,815.20
Stockport MBC,Corporate and Support Services,Central Support Costs,ATLASSIAN,Information and Communications Technology,Information Communication Technology  ,08.11.2021,16.12.2021,GPC11210000007,794.63
Stockport MBC,Corporate and Support Services,Central Support Costs,AUTH0.COM,Information and Communications Technology,Information Communication Technology  ,05.11.2021,16.12.2021,GPC11210000008,152.84
Stockport MBC,Corporate and Support Services,Central Support Costs,FASTHOSTS INTERNET,Information and Communications Technology,Information Communication Technology  ,05.11.2021,16.12.2021,GPC11210000009,19.19
Stockport MBC,Corporate and Support Services,Central Support Costs,AMAZON.CO.UK 5B26U7UD5,Information and Communications Technology,Information Communication Technology  ,03.11.2021,16.12.2021,GPC11210000010,73.97
Stockport MBC,Corporate and Support Services,Central Support Costs,AWS EMEA,Information and Communications Technology,Information Communication Technology  ,02.11.2021,16.12.2021,GPC11210000011,"1,049.41"
Stockport MBC,Services to People,Adult Social Care,DELIVEROO,Catering Supplies,Catering Food & Beverages ,01.12.2021,16.12.2021,GPC11210000012,15.65
Stockport MBC,Services to People,Adult Social Care,DELIVEROO,Catering Supplies,Catering Food & Beverages ,01.12.2021,16.12.2021,GPC11210000013,68.69
Stockport MBC,Services to People,Adult Social Care,DELIVEROO,Catering Supplies,Catering Food & Beverages ,01.12.2021,16.12.2021,GPC11210000014,19.38
Stockport MBC,Services to People,Adult Social Care,UBER    EATS,Catering Supplies,Catering Food & Beverages ,01.12.2021,16.12.2021,GPC11210000015,28.39
Stockport MBC,Services to People,Adult Social Care,DELIVEROO,Catering Supplies,Catering Food & Beverages ,30.11.2021,16.12.2021,GPC11210000016,8.57
Stockport MBC,Services to People,Adult Social Care,DELIVEROO,Catering Supplies,Catering Food & Beverages ,24.11.2021,16.12.2021,GPC11210000017,18.08
Stockport MBC,Services to People,Adult Social Care,W M MORRISONS.COM,Catering Supplies,Catering Food & Beverages ,21.11.2021,16.12.2021,GPC11210000018,43.18
Stockport MBC,Services to People,Adult Social Care,W M MORRISONS.COM,Catering Supplies,Catering Food & Beverages ,18.11.2021,16.12.2021,GPC11210000019,69.92
Stockport MBC,Services to People,Adult Social Care,W M MORRISONS.COM,Catering Supplies,Catering Food & Beverages ,20.11.2021,16.12.2021,GPC11210000020,47.25
Stockport MBC,Services to People,Adult Social Care,DELIVEROO,Catering Supplies,Catering Food & Beverages ,12.11.2021,16.12.2021,GPC11210000021,18.18
Stockport MBC,Services to People,Adult Social Care,W M MORRISONS.COM,Catering Supplies,Catering Food & Beverages ,12.11.2021,16.12.2021,GPC11210000022,99.50
Stockport MBC,Services to People,Adult Social Care,BRITISH GAS ONLINE,Utilities,Utilities   ,10.11.2021,16.12.2021,GPC11210000023,9.95
Stockport MBC,Services to People,Adult Social Care,BRITISH GAS ONLINE,Utilities,Utilities   ,10.11.2021,16.12.2021,GPC11210000024,9.95
Stockport MBC,Services to People,Adult Social Care,DELIVEROO,Catering Supplies,Catering Food & Beverages ,10.11.2021,16.12.2021,GPC11210000025,19.08
Stockport MBC,Services to People,Adult Social Care,DELIVEROO,Catering Supplies,Catering Food & Beverages ,10.11.2021,16.12.2021,GPC11210000026,34.56
Stockport MBC,Services to People,Adult Social Care,DELIVEROO,Catering Supplies,Catering Food & Beverages ,09.11.2021,16.12.2021,GPC11210000027,13.18
Stockport MBC,Services to People,Adult Social Care,DELIVEROO,Catering Supplies,Catering Food & Beverages ,09.11.2021,16.12.2021,GPC11210000028,46.49
Stockport MBC,Services to People,Childrens & Educational Services,B2A CHARITY,Office Expenses,Mail Services�  ,26.11.2021,16.12.2021,GPC11210000029,40.00
Stockport MBC,Services to People,Childrens & Educational Services,NHA HANDWRITING,Staff Training,Human Resources  ,10.11.2021,16.12.2021,GPC11210000030,10.00
Stockport MBC,Services to People,Childrens & Educational Services,NHA HANDWRITING,Staff Training,Human Resources  ,10.11.2021,16.12.2021,GPC11210000031,10.00
Stockport MBC,Services to People,Childrens & Educational Services,NHA HANDWRITING,Staff Training,Human Resources  ,10.11.2021,16.12.2021,GPC11210000032,10.00
Stockport MBC,Services to People,Childrens & Educational Services,NHA HANDWRITING,Staff Training,Human Resources  ,10.11.2021,16.12.2021,GPC11210000033,10.00
Stockport MBC,Corporate and Support Services,Central Services to the public,BREAD AND BUTTIES LTD,Expenses and Allowances,Catering  ,01.12.2021,16.12.2021,GPC11210000034,50.53
Stockport MBC,Corporate and Support Services,Central Services to the public,PRICELESS DISCOUNTS LI,Expenses and Allowances,Catering  ,30.11.2021,16.12.2021,GPC11210000035,1.00
Stockport MBC,Corporate and Support Services,Central Services to the public,BREAD AND BUTTIES LTD,Expenses and Allowances,Catering  ,30.11.2021,16.12.2021,GPC11210000036,50.77
Stockport MBC,Corporate and Support Services,Central Services to the public,BREAD AND BUTTIES LTD,Expenses and Allowances,Catering  ,29.11.2021,16.12.2021,GPC11210000037,50.05
Stockport MBC,Corporate and Support Services,Central Services to the public,BREAD AND BUTTIES LTD,Expenses and Allowances,Catering  ,26.11.2021,16.12.2021,GPC11210000038,50.51
Stockport MBC,Corporate and Support Services,Central Services to the public,BREAD AND BUTTIES LTD,Expenses and Allowances,Catering  ,25.11.2021,16.12.2021,GPC11210000039,51.02
Stockport MBC,Corporate and Support Services,Central Services to the public,BREAD AND BUTTIES LTD,Expenses and Allowances,Catering  ,24.11.2021,16.12.2021,GPC11210000040,50.82
Stockport MBC,Corporate and Support Services,Central Services to the public,PRICELESS DISCOUNTS LI,Expenses and Allowances,Catering  ,24.11.2021,16.12.2021,GPC11210000041,1.00
Stockport MBC,Corporate and Support Services,Central Services to the public,BREAD AND BUTTIES LTD,Expenses and Allowances,Catering  ,23.11.2021,16.12.2021,GPC11210000042,50.71
Stockport MBC,Corporate and Support Services,Central Services to the public,PRICELESS DISCOUNTS LI,Expenses and Allowances,Catering  ,22.11.2021,16.12.2021,GPC11210000043,1.00
Stockport MBC,Corporate and Support Services,Central Services to the public,B&M EXPRESS BRINNINGTO,Expenses and Allowances,Catering  ,19.11.2021,16.12.2021,GPC11210000044,14.00
Stockport MBC,Corporate and Support Services,Central Support Costs,FACEBK  YNEECABMG2,Office Expenses,Facilities & Management Services  ,30.11.2021,16.12.2021,GPC11210000045,465.03
Stockport MBC,Corporate and Support Services,Central Support Costs,LINKEDIN 7060601333,Office Expenses,Facilities & Management Services  ,28.11.2021,16.12.2021,GPC11210000046,385.10
Stockport MBC,Corporate and Support Services,Central Support Costs,CANVA  I03252-0770066,Publicity and Promotion,Facilities & Management Services  ,26.11.2021,16.12.2021,GPC11210000047,92.58
Stockport MBC,Corporate and Support Services,Central Support Costs,APPLE.COM/BILL,Information and Communications Technology,Information Communication Technology  ,26.11.2021,16.12.2021,GPC11210000048,5.83
Stockport MBC,Corporate and Support Services,Central Support Costs,CUSTOM TWITTER FEEDS P,Office Expenses,Facilities & Management Services  ,26.11.2021,16.12.2021,GPC11210000049,37.92
Stockport MBC,Corporate and Support Services,Central Support Costs,ENVATO 60284950,Information and Communications Technology,Information Communication Technology  ,03.11.2021,16.12.2021,GPC11210000050,70.81
Stockport MBC,Services to People,Childrens & Educational Services,ANDERTONS MUSIC,Furniture and Equipment,Environmental Services Technical Equipment ,24.11.2021,16.12.2021,GPC11210000051,274.17
Stockport MBC,Services to People,Childrens & Educational Services,CROWN DECORATING CENTR,Repairs and Maintenance,"Works - Construction, Repair & Maintenance  ",25.11.2021,16.12.2021,GPC11210000052,99.80
Stockport MBC,Services to People,Childrens & Educational Services,DULUX DECORATOR CENTRE,Repairs and Maintenance,"Works - Construction, Repair & Maintenance  ",24.11.2021,16.12.2021,GPC11210000053,4.50
Stockport MBC,Services to People,Childrens & Educational Services,SCREWFIX DIRECT,Cleaning,Cleaning & Janitorial  ,19.11.2021,16.12.2021,GPC11210000054,49.95
Stockport MBC,Services to People,Childrens & Educational Services,JOHNSTONES DEC CENTRE,Repairs and Maintenance,"Works - Construction, Repair & Maintenance  ",18.11.2021,16.12.2021,GPC11210000055,72.90
Stockport MBC,Services to People,Childrens & Educational Services,WWW.MTISHOWS.COM,Furniture and Equipment,Furniture & Soft Furnishings  ,16.11.2021,16.12.2021,GPC11210000056,4.00
Stockport MBC,Services to People,Childrens & Educational Services,WIGAN COUNCIL,Travelling Expenses,Human Resources Travel & Subsistence ,04.11.2021,16.12.2021,GPC11210000057,5.00
Stockport MBC,Services to People,Childrens & Educational Services,AMZNMKTPLACE,Cleaning,Cleaning & Janitorial  ,03.11.2021,16.12.2021,GPC11210000058,7.50
Stockport MBC,Services to Place,Cultural & Related Services,AMZNMKTPLACE,Furniture and Equipment,Furniture & Soft Furnishings  ,10.11.2021,16.12.2021,GPC11210000059,124.96
Stockport MBC,Services to People,Childrens & Educational Services,FACEBK  36MZ4AKSK2,Office Expenses,Facilities & Management Services  ,01.12.2021,16.12.2021,GPC11210000060,500.00
Stockport MBC,Services to People,Childrens & Educational Services,PREMIER INN 44534170,Travelling Expenses,Human Resources Travel & Subsistence ,29.11.2021,16.12.2021,GPC11210000061,413.94
Stockport MBC,Services to People,Childrens & Educational Services,TRAINLINE,Travelling Expenses,Human Resources Travel & Subsistence ,29.11.2021,16.12.2021,GPC11210000062,391.50
Stockport MBC,Services to People,Childrens & Educational Services,TRAINLINE,Travelling Expenses,Human Resources Travel & Subsistence ,29.11.2021,16.12.2021,GPC11210000063,133.70
Stockport MBC,Services to People,Childrens & Educational Services,CVAA UK LTD,Staff Training,Human Resources  ,23.11.2021,16.12.2021,GPC11210000064,79.00
Stockport MBC,Services to People,Childrens & Educational Services,ZOOM.US 888-799-9666,Publicity and Promotion,Arts & Leisure Services  ,19.11.2021,16.12.2021,GPC11210000065,119.90
Stockport MBC,Services to People,Childrens & Educational Services,GOOGLE  ADS8179771860,Office Expenses,Facilities & Management Services  ,03.11.2021,16.12.2021,GPC11210000066,18.92
Stockport MBC,Services to People,Childrens & Educational Services,AMZNMKTPLACE AMAZON.CO,Furniture and Equipment,Environmental Services Technical Equipment ,01.12.2021,16.12.2021,GPC11210000067,41.40
Stockport MBC,Services to People,Childrens & Educational Services,THE MIDWAY,Publicity and Promotion,Arts & Leisure Services  ,16.11.2021,16.12.2021,GPC11210000068,100.00
Stockport MBC,Services to People,Childrens & Educational Services,AMAZON PRIME 3Z7JV3QI5,Furniture and Equipment,Furniture & Soft Furnishings  ,13.11.2021,16.12.2021,GPC11210000069,7.99
Stockport MBC,Services to People,Childrens & Educational Services,WM MORRISONS STORE,Office Expenses,Stationery    ,10.11.2021,16.12.2021,GPC11210000070,5.58
Stockport MBC,Services to People,Childrens & Educational Services,SPREAD EAGLE PUB,MISCLASSIFIED? CHECK BEFORE PUBLICATION,UNCLASSIFIED  ,11.11.2021,16.12.2021,GPC11210000071,128.32
Stockport MBC,Services to People,Childrens & Educational Services,AMZNMKTPLACE AMAZON.CO,Office Expenses,Stationery    ,10.11.2021,16.12.2021,GPC11210000072,94.00
Stockport MBC,Services to People,Childrens & Educational Services,AMZNMKTPLACE AMAZON.CO,Furniture and Equipment,Furniture & Soft Furnishings  ,04.11.2021,16.12.2021,GPC11210000073,31.61
Stockport MBC,Services to People,Childrens & Educational Services,WM MORRISONS STORE,Catering Supplies,Catering Food & Beverages ,30.11.2021,16.12.2021,GPC11210000074,21.74
Stockport MBC,Services to People,Childrens & Educational Services,WM MORRISONS STORE,Office Expenses,Mail Services�  ,30.11.2021,16.12.2021,GPC11210000075,47.52
Stockport MBC,Services to People,Childrens & Educational Services,WM MORRISONS STORE,Catering Supplies,Catering Food & Beverages ,29.11.2021,16.12.2021,GPC11210000076,4.00
Stockport MBC,Services to People,Childrens & Educational Services,WM MORRISONS STORE,Catering Supplies,Catering Food & Beverages ,29.11.2021,16.12.2021,GPC11210000077,65.28
Stockport MBC,Services to People,Childrens & Educational Services,B & Q 1279,Furniture and Equipment,Environmental Services Technical Equipment ,25.11.2021,16.12.2021,GPC11210000078,66.00
Stockport MBC,Services to People,Childrens & Educational Services,WM MORRISONS STORE,Catering Supplies,Catering Food & Beverages ,24.11.2021,16.12.2021,GPC11210000079,38.04
Stockport MBC,Services to People,Childrens & Educational Services,DEANWATER HOTEL,Staff Training,Human Resources  ,25.11.2021,16.12.2021,GPC11210000080,-27.50
Stockport MBC,Services to People,Childrens & Educational Services,WM MORRISONS STORE,Catering Supplies,Catering Food & Beverages ,18.11.2021,16.12.2021,GPC11210000081,4.69
Stockport MBC,Services to People,Childrens & Educational Services,WM MORRISONS STORE,Catering Supplies,Catering Food & Beverages ,18.11.2021,16.12.2021,GPC11210000082,2.00
Stockport MBC,Services to People,Childrens & Educational Services,DEANWATER HOTEL,Staff Training,Human Resources  ,18.11.2021,16.12.2021,GPC11210000083,27.50
Stockport MBC,Services to People,Childrens & Educational Services,WM MORRISONS STORE,Catering Supplies,Catering Food & Beverages ,16.11.2021,16.12.2021,GPC11210000084,106.11
Stockport MBC,Services to People,Childrens & Educational Services,WM MORRISONS STORE,Catering Supplies,Catering Food & Beverages ,11.11.2021,16.12.2021,GPC11210000085,6.00
Stockport MBC,Services to People,Childrens & Educational Services,WM MORRISONS STORE,Catering Supplies,Catering Food & Beverages ,12.11.2021,16.12.2021,GPC11210000086,2.50
Stockport MBC,Services to People,Childrens & Educational Services,B&M 518 - EDGELEY,Catering Supplies,Catering Food & Beverages ,11.11.2021,16.12.2021,GPC11210000087,20.60
Stockport MBC,Services to People,Childrens & Educational Services,WM MORRISONS STORE,Catering Supplies,Catering Food & Beverages ,09.11.2021,16.12.2021,GPC11210000088,54.29
Stockport MBC,Services to People,Childrens & Educational Services,WM MORRISONS STORE,Catering Supplies,Catering Food & Beverages ,08.11.2021,16.12.2021,GPC11210000089,11.50
Stockport MBC,Services to People,Childrens & Educational Services,B&M 518 - EDGELEY,Furniture and Equipment,Environmental Services Technical Equipment ,08.11.2021,16.12.2021,GPC11210000090,1.69
Stockport MBC,Services to People,Childrens & Educational Services,WM MORRISONS STORE,Catering Supplies,Catering Food & Beverages ,02.11.2021,16.12.2021,GPC11210000091,12.39
Stockport MBC,Services to People,Childrens & Educational Services,AMZNMKTPLACE AMAZON.CO,Furniture and Equipment,Environmental Services Technical Equipment ,03.11.2021,16.12.2021,GPC11210000092,13.49
Stockport MBC,Services to People,Childrens & Educational Services,WM MORRISONS STORE,Catering Supplies,Catering Food & Beverages ,01.11.2021,16.12.2021,GPC11210000093,31.20
Stockport MBC,Corporate and Support Services,Corporate & Democratic Core,GLOBAL TINT LTD,Furniture and Equipment,Environmental Services Technical Equipment ,01.12.2021,16.12.2021,GPC11210000094,75.00
Stockport MBC,Corporate and Support Services,Corporate & Democratic Core,IZ  LUCYBURGESSART,Furniture and Equipment,Environmental Services Technical Equipment ,30.11.2021,16.12.2021,GPC11210000095,200.00
Stockport MBC,Corporate and Support Services,Corporate & Democratic Core,AMZNMKTPLACE AMAZON.CO,Furniture and Equipment,Environmental Services Technical Equipment ,24.11.2021,16.12.2021,GPC11210000096,17.99
Stockport MBC,Corporate and Support Services,Corporate & Democratic Core,WWW2.@WARWICK.AC.UK,Staff Training,Human Resources  ,10.11.2021,16.12.2021,GPC11210000097,162.00
Stockport MBC,Corporate and Support Services,Corporate & Democratic Core,WWW.LOCAL.GOV.UK,Staff Training,Human Resources  ,10.11.2021,16.12.2021,GPC11210000098,60.00
Stockport MBC,Services to People,Adult Social Care,ASDA GROCERIES ONLINE,Catering Supplies,Catering Food & Beverages ,26.11.2021,16.12.2021,GPC11210000099,106.91
Stockport MBC,Services to People,Adult Social Care,ASDA GROCERIES ONLINE,Catering Supplies,Catering Food & Beverages ,12.11.2021,16.12.2021,GPC11210000100,115.59
Stockport MBC,Services to People,Adult Social Care,ASDA GROCERIES ONLINE,Catering Supplies,Catering Food & Beverages ,12.11.2021,16.12.2021,GPC11210000101,3.78
Stockport MBC,Services to People,Adult Social Care,ASDA GROCERIES ONLINE,Catering Supplies,Catering Food & Beverages ,06.11.2021,16.12.2021,GPC11210000102,-4.00
Stockport MBC,Services to People,Adult Social Care,ASDA GROCERIES ONLINE,Catering Supplies,Catering Food & Beverages ,06.11.2021,16.12.2021,GPC11210000103,88.49
Stockport MBC,Corporate and Support Services,Central Support Costs,ROYAL MAIL ONLINE SHOP,Office Expenses,Stationery    ,30.11.2021,16.12.2021,GPC11210000104,18.50
Stockport MBC,Corporate and Support Services,Central Support Costs,SLATER HEELIS LIMITED,Legal Fees,Legal Services  ,24.11.2021,16.12.2021,GPC11210000105,54.00
Stockport MBC,Corporate and Support Services,Central Support Costs,AMAZON.CO.UK DU2HF58C5,Office Expenses,Stationery    ,23.11.2021,16.12.2021,GPC11210000106,73.62
Stockport MBC,Corporate and Support Services,Central Support Costs,STOCKPORT M B C,Legal Fees,Legal Services  ,05.11.2021,16.12.2021,GPC11210000107,11.00
Stockport MBC,Services to People,Public Health,ASDA GROCERIES ONLINE,Catering Supplies,Catering Food & Beverages ,30.11.2021,16.12.2021,GPC11210000108,44.67
Stockport MBC,Services to People,Public Health,WWW.UTILITA.CO.UK,Utilities,Utilities   ,29.11.2021,16.12.2021,GPC11210000109,35.00
Stockport MBC,Services to People,Public Health,ASDA GROCERIES ONLINE,Catering Supplies,Catering Food & Beverages ,23.11.2021,16.12.2021,GPC11210000110,22.34
Stockport MBC,Services to People,Public Health,ASDA GROCERIES ONLINE,Catering Supplies,Catering Food & Beverages ,23.11.2021,16.12.2021,GPC11210000111,56.31
Stockport MBC,Services to People,Public Health,ASDA GROCERIES ONLINE,Catering Supplies,Catering Food & Beverages ,23.11.2021,16.12.2021,GPC11210000112,-3.75
Stockport MBC,Services to People,Public Health,ASDA GROCERIES ONLINE,Catering Supplies,Catering Food & Beverages ,14.11.2021,16.12.2021,GPC11210000113,17.24
Stockport MBC,Services to People,Adult Social Care,B&M 089 - THE ROCK,Furniture and Equipment,Furniture & Soft Furnishings  ,01.12.2021,16.12.2021,GPC11210000114,30.59
Stockport MBC,Services to People,Adult Social Care,ALDI 84 773,Catering Supplies,Catering Food & Beverages ,02.11.2021,16.12.2021,GPC11210000115,66.02
Stockport MBC,Corporate and Support Services,Cultural & Related Services,SAINSBURY'S S/MKTS,Catering Supplies,Catering Food & Beverages ,27.11.2021,16.12.2021,GPC11210000116,0.20
Stockport MBC,Corporate and Support Services,Cultural & Related Services,SAINSBURY'S S/MKT,Catering Supplies,Catering Food & Beverages ,19.11.2021,16.12.2021,GPC11210000117,0.60
Stockport MBC,Corporate and Support Services,Cultural & Related Services,SAINSBURY'S S/MKTS,Catering Supplies,Catering Food & Beverages ,12.11.2021,16.12.2021,GPC11210000118,5.20
Stockport MBC,Corporate and Support Services,Cultural & Related Services,CURRYS ONLINE,Furniture and Equipment,Environmental Services Technical Equipment ,10.11.2021,16.12.2021,GPC11210000119,89.99
Stockport MBC,Corporate and Support Services,Cultural & Related Services,CURRYS ONLINE,Furniture and Equipment,Environmental Services Technical Equipment ,10.11.2021,16.12.2021,GPC11210000120,89.99
Stockport MBC,Services to Place,Cultural & Related Services,AMAZON.CO.UK 5J08L9XR5,Furniture and Equipment,Furniture & Soft Furnishings  ,01.12.2021,16.12.2021,GPC11210000121,38.76
Stockport MBC,Services to Place,Cultural & Related Services,AMZNMKTPLACE,Publicity and Promotion,Arts & Leisure Services  ,16.11.2021,16.12.2021,GPC11210000122,86.89
Stockport MBC,Services to Place,Cultural & Related Services,AMZNMKTPLACE,Publicity and Promotion,Arts & Leisure Services  ,14.11.2021,16.12.2021,GPC11210000123,30.98
Stockport MBC,Services to Place,Cultural & Related Services,AMAZON.CO.UK XN0051MB5,Furniture and Equipment,Environmental Services Technical Equipment ,04.11.2021,16.12.2021,GPC11210000124,18.39
Stockport MBC,Services to People,Childrens & Educational Services,CHILL FACTOR E,Furniture and Equipment,Environmental Services Technical Equipment ,25.11.2021,16.12.2021,GPC11210000125,12.00
Stockport MBC,Services to People,Childrens & Educational Services,MCDONALDS 1202,Catering Supplies,Catering Food & Beverages ,25.11.2021,16.12.2021,GPC11210000126,79.80
Stockport MBC,Services to People,Childrens & Educational Services,ASHTON ROAD SERVICE ST,Leasing /Transport Hire,Vehicle Management Leasing ,25.11.2021,16.12.2021,GPC11210000127,20.01
Stockport MBC,Services to People,Public Health,ASDA GROCERIES ONLINE,Catering Supplies,Catering Food & Beverages ,23.11.2021,16.12.2021,GPC11210000128,-2.77
Stockport MBC,Services to People,Public Health,ASDA GROCERIES ONLINE,Catering Supplies,Catering Food & Beverages ,23.11.2021,16.12.2021,GPC11210000129,45.30
Stockport MBC,Services to People,Adult Social Care,ASDA GROCERIES ONLINE,Catering Supplies,Catering Food & Beverages ,19.11.2021,16.12.2021,GPC11210000130,64.41
Stockport MBC,Services to People,Adult Social Care,ASDA GROCERIES ONLINE,Catering Supplies,Catering Food & Beverages ,20.11.2021,16.12.2021,GPC11210000131,-2.13
Stockport MBC,Services to People,Childrens & Educational Services,BASE CAMP,Furniture and Equipment,Furniture & Soft Furnishings  ,29.11.2021,16.12.2021,GPC11210000132,310.00
Stockport MBC,Services to People,Childrens & Educational Services,AMAZON.CO.UK SL4DS6055,Library Equipment,Education Library Books ,21.11.2021,16.12.2021,GPC11210000133,27.99
Stockport MBC,Services to People,Childrens & Educational Services,AMAZON PRIME QK4AU9045,Office Expenses,Stationery    ,18.11.2021,16.12.2021,GPC11210000134,7.99
Stockport MBC,Services to People,Childrens & Educational Services,ANNA FREUD CENTRE,Staff Training,Human Resources  ,15.11.2021,16.12.2021,GPC11210000135,30.00
Stockport MBC,Services to People,Childrens & Educational Services,AMAZON.CO.UK 9M6A508T5,Library Equipment,Education Library Books ,15.11.2021,16.12.2021,GPC11210000136,15.99
Stockport MBC,Services to People,Childrens & Educational Services,MCDONALDS 1202,Catering Supplies,Catering Food & Beverages ,30.11.2021,16.12.2021,GPC11210000137,10.18
Stockport MBC,Services to People,Childrens & Educational Services,AMZNMKTPLACE,Furniture and Equipment,Environmental Services Technical Equipment ,26.11.2021,16.12.2021,GPC11210000138,89.97
Stockport MBC,Services to People,Childrens & Educational Services,MCDONALDS 1202,Furniture and Equipment,Environmental Services Technical Equipment ,25.11.2021,16.12.2021,GPC11210000139,12.28
Stockport MBC,Services to People,Childrens & Educational Services,LIFE LEISURE BRINNINGT,Fees and Charges,Education  ,24.11.2021,16.12.2021,GPC11210000140,21.50
Stockport MBC,Services to People,Childrens & Educational Services,MCDONALDS 1202,Catering Supplies,Catering Food & Beverages ,23.11.2021,16.12.2021,GPC11210000141,10.94
Stockport MBC,Services to People,Childrens & Educational Services,AMZNMKTPLACE,Furniture and Equipment,Environmental Services Technical Equipment ,21.11.2021,16.12.2021,GPC11210000142,20.85
Stockport MBC,Services to People,Childrens & Educational Services,JD SPORTS INTERNET,Furniture and Equipment,Environmental Services Technical Equipment ,18.11.2021,16.12.2021,GPC11210000143,26.99
Stockport MBC,Services to People,Childrens & Educational Services,MCDONALDS 1202,Catering Supplies,Catering Food & Beverages ,18.11.2021,16.12.2021,GPC11210000144,9.71
Stockport MBC,Services to People,Childrens & Educational Services,AMZNMKTPLACE AMAZON.CO,Furniture and Equipment,Environmental Services Technical Equipment ,18.11.2021,16.12.2021,GPC11210000145,39.99
Stockport MBC,Services to People,Childrens & Educational Services,MCDONALDS 1202,Catering Supplies,Catering Food & Beverages ,11.11.2021,16.12.2021,GPC11210000146,11.61
Stockport MBC,Services to People,Childrens & Educational Services,ATG TICKETS,Fees and Charges,Education  ,11.11.2021,16.12.2021,GPC11210000147,-165.00
Stockport MBC,Services to People,Childrens & Educational Services,MCDONALDS 1202,Catering Supplies,Catering Food & Beverages ,09.11.2021,16.12.2021,GPC11210000148,5.12
Stockport MBC,Services to People,Childrens & Educational Services,LIFE LEISURE BRINNINGT,Fees and Charges,Education  ,10.11.2021,16.12.2021,GPC11210000149,21.50
Stockport MBC,Services to People,Childrens & Educational Services,AMZNMKTPLACE,Furniture and Equipment,Environmental Services Technical Equipment ,07.11.2021,16.12.2021,GPC11210000150,22.36
Stockport MBC,Services to People,Childrens & Educational Services,AMZNMKTPLACE,Furniture and Equipment,Environmental Services Technical Equipment ,04.11.2021,16.12.2021,GPC11210000151,21.58
Stockport MBC,Services to People,Adult Social Care,UBER    EATS,Catering Supplies,Catering Food & Beverages ,01.12.2021,16.12.2021,GPC11210000152,-1.58
Stockport MBC,Services to People,Adult Social Care,DELIVEROO,Catering Supplies,Catering Food & Beverages ,29.11.2021,16.12.2021,GPC11210000153,12.28
Stockport MBC,Services to People,Adult Social Care,ASDA GROCERIES ONLINE,Catering Supplies,Catering Food & Beverages ,27.11.2021,16.12.2021,GPC11210000154,61.90
Stockport MBC,Services to People,Adult Social Care,ASDA GROCERIES ONLINE,Catering Supplies,Catering Food & Beverages ,25.11.2021,16.12.2021,GPC11210000155,35.32
Stockport MBC,Services to People,Adult Social Care,UBER    EATS,Catering Supplies,Catering Food & Beverages ,21.11.2021,16.12.2021,GPC11210000156,1.58
Stockport MBC,Services to People,Adult Social Care,ASDA GROCERIES ONLINE,Catering Supplies,Catering Food & Beverages ,19.11.2021,16.12.2021,GPC11210000157,65.85
Stockport MBC,Services to People,Adult Social Care,UBER    EATS,Catering Supplies,Catering Food & Beverages ,21.11.2021,16.12.2021,GPC11210000158,15.80
Stockport MBC,Services to People,Adult Social Care,ASDA GROCERIES ONLINE,Catering Supplies,Catering Food & Beverages ,18.11.2021,16.12.2021,GPC11210000159,46.67
Stockport MBC,Services to People,Adult Social Care,DELIVEROO,Catering Supplies,Catering Food & Beverages ,06.11.2021,16.12.2021,GPC11210000160,8.48
Stockport MBC,Services to People,Adult Social Care,ASDA GROCERIES ONLINE,Catering Supplies,Catering Food & Beverages ,06.11.2021,16.12.2021,GPC11210000161,54.11
Stockport MBC,Services to People,Childrens & Educational Services,AMZNMKTPLACE AMAZON.CO,Furniture and Equipment,Furniture & Soft Furnishings  ,19.11.2021,16.12.2021,GPC11210000162,2.96
Stockport MBC,Services to People,Childrens & Educational Services,MY.MORRISONS.COM,Catering Supplies,Catering Food & Beverages ,16.11.2021,16.12.2021,GPC11210000163,16.00
Stockport MBC,Services to People,Childrens & Educational Services,POST OFFICE COUNTER,Office Expenses,Mail Services�  ,16.11.2021,16.12.2021,GPC11210000164,27.15
Stockport MBC,Services to People,Childrens & Educational Services,ASDA STORES 4840,Furniture and Equipment,Furniture & Soft Furnishings  ,05.11.2021,16.12.2021,GPC11210000165,3.60
Stockport MBC,Services to People,Childrens & Educational Services,POST OFFICE COUNTER,Office Expenses,Mail Services�  ,05.11.2021,16.12.2021,GPC11210000166,6.85
Stockport MBC,Services to People,Childrens & Educational Services,ASDA STORES 4840,Cleaning,Cleaning & Janitorial  ,04.11.2021,16.12.2021,GPC11210000167,6.00
Stockport MBC,Services to People,Childrens & Educational Services,ASDA STORES 4840,Furniture and Equipment,Furniture & Soft Furnishings  ,04.11.2021,16.12.2021,GPC11210000168,6.50
Stockport MBC,Services to People,Childrens & Educational Services,WWW.PSHE-ASSOCIATION.O,Fees and Charges,"Works - Construction, Repair & Maintenance  ",03.11.2021,16.12.2021,GPC11210000169,45.00
Stockport MBC,Services to People,Childrens & Educational Services,AMAZON.CO.UK UL08J1CK5,Library Equipment,Education Library Books ,02.11.2021,16.12.2021,GPC11210000170,13.98
Stockport MBC,Services to People,Adult Social Care,B & Q 1279,Office Expenses,Health & Safety�  ,22.11.2021,16.12.2021,GPC11210000171,6.15
Stockport MBC,Services to People,Adult Social Care,CURRYS STOCKPORT,Furniture and Equipment,Furniture & Soft Furnishings  ,22.11.2021,16.12.2021,GPC11210000172,369.99
Stockport MBC,Corporate and Support Services,Corporate & Democratic Core,STOCKPORT T/O,Travelling Expenses,Human Resources Travel & Subsistence ,11.11.2021,16.12.2021,GPC11210000173,-63.90
Stockport MBC,Services to People,Childrens & Educational Services,THE WORKS,Library Equipment,Education Library Books ,30.11.2021,16.12.2021,GPC11210000174,30.50
Stockport MBC,Services to People,Childrens & Educational Services,TESCO STORES 3378,Catering Supplies,Catering Food & Beverages ,30.11.2021,16.12.2021,GPC11210000175,0.47
Stockport MBC,Services to People,Childrens & Educational Services,ACTIVE TAMESIDE,Fees and Charges,Education  ,30.11.2021,16.12.2021,GPC11210000176,6.50
Stockport MBC,Services to People,Childrens & Educational Services,ACTIVE TAMESIDE,Catering Supplies,Catering Food & Beverages ,30.11.2021,16.12.2021,GPC11210000177,9.60
Stockport MBC,Services to People,Childrens & Educational Services,ASDA STORES 4840,Catering Supplies,Catering Food & Beverages ,30.11.2021,16.12.2021,GPC11210000178,29.57
Stockport MBC,Services to People,Childrens & Educational Services,ASDA STORES 4840,Catering Supplies,Catering Food & Beverages ,23.11.2021,16.12.2021,GPC11210000179,53.83
Stockport MBC,Services to People,Childrens & Educational Services,ACTIVE TAMESIDE,Catering Supplies,Catering Food & Beverages ,23.11.2021,16.12.2021,GPC11210000180,5.20
Stockport MBC,Services to People,Childrens & Educational Services,ACTIVE TAMESIDE,Fees and Charges,Education  ,23.11.2021,16.12.2021,GPC11210000181,6.50
Stockport MBC,Services to People,Childrens & Educational Services,TESCO STORES 3378,Catering Supplies,Catering Food & Beverages ,18.11.2021,16.12.2021,GPC11210000182,61.29
Stockport MBC,Services to People,Childrens & Educational Services,B&M 593 - SNIPE,Catering Supplies,Catering Food & Beverages ,17.11.2021,16.12.2021,GPC11210000183,18.68
Stockport MBC,Services to People,Childrens & Educational Services,ALDI 13 773,Cleaning,Cleaning & Janitorial  ,16.11.2021,16.12.2021,GPC11210000184,11.30
Stockport MBC,Services to People,Childrens & Educational Services,HOME BARGAINS,Catering Supplies,Catering Food & Beverages ,17.11.2021,16.12.2021,GPC11210000185,28.90
Stockport MBC,Services to People,Childrens & Educational Services,B&M 570 - CLARKWAYHYDE,Catering Supplies,Catering Food & Beverages ,16.11.2021,16.12.2021,GPC11210000186,3.00
Stockport MBC,Services to People,Childrens & Educational Services,ACTIVE TAMESIDE,Fees and Charges,Education  ,16.11.2021,16.12.2021,GPC11210000187,6.00
Stockport MBC,Services to People,Childrens & Educational Services,ASDA STORES 4840,Catering Supplies,Catering Food & Beverages ,15.11.2021,16.12.2021,GPC11210000188,66.25
Stockport MBC,Services to People,Childrens & Educational Services,WICKES STOCKPORT,Repairs and Maintenance,"Works - Construction, Repair & Maintenance  ",09.11.2021,16.12.2021,GPC11210000189,44.00
Stockport MBC,Services to People,Childrens & Educational Services,AMZNMKTPLACE AMAZON.CO,Furniture and Equipment,Furniture & Soft Furnishings  ,08.11.2021,16.12.2021,GPC11210000190,7.99
Stockport MBC,Services to People,Childrens & Educational Services,AMZNMKTPLACE AMAZON.CO,Furniture and Equipment,Furniture & Soft Furnishings  ,09.11.2021,16.12.2021,GPC11210000191,6.68
Stockport MBC,Services to People,Childrens & Educational Services,ACTIVE TAMESIDE,Fees and Charges,Education  ,09.11.2021,16.12.2021,GPC11210000192,14.00
Stockport MBC,Services to People,Childrens & Educational Services,ASDA STORES 4840,Catering Supplies,Catering Food & Beverages ,08.11.2021,16.12.2021,GPC11210000193,68.12
Stockport MBC,Services to People,Childrens & Educational Services,AMZNMKTPLACE AMAZON.CO,Furniture and Equipment,Furniture & Soft Furnishings  ,08.11.2021,16.12.2021,GPC11210000194,5.99
Stockport MBC,Services to People,Childrens & Educational Services,MCDONALDS 1202,Catering Supplies,Catering Food & Beverages ,05.11.2021,16.12.2021,GPC11210000195,15.07
Stockport MBC,Services to People,Childrens & Educational Services,ASDA STORES 4840,Catering Supplies,Catering Food & Beverages ,03.11.2021,16.12.2021,GPC11210000196,34.16
Stockport MBC,Services to People,Childrens & Educational Services,TESCO STORES 3378,Catering Supplies,Catering Food & Beverages ,02.11.2021,16.12.2021,GPC11210000197,74.97
Stockport MBC,Services to People,Childrens & Educational Services,ACTIVE TAMESIDE,Fees and Charges,Education  ,02.11.2021,16.12.2021,GPC11210000198,12.00
Stockport MBC,Services to People,Childrens & Educational Services,THETRAINLINE.COM,Travelling Expenses,Human Resources Travel & Subsistence ,30.11.2021,16.12.2021,GPC11210000199,-41.40
Stockport MBC,Services to People,Childrens & Educational Services,PREMIER INN44521425,Care Payments,Social Community Care Supplies & Services  ,25.11.2021,16.12.2021,GPC11210000200,231.50
Stockport MBC,Services to People,Childrens & Educational Services,COURTYARD BY MARRIOTT,Expenses and Allowances,Catering  ,22.11.2021,16.12.2021,GPC11210000201,71.10
Stockport MBC,Services to People,Childrens & Educational Services,HOLIDAY INNS,Care Payments,Social Community Care Supplies & Services  ,22.11.2021,16.12.2021,GPC11210000202,-652.50
Stockport MBC,Services to People,Childrens & Educational Services,MANCHESTER AIRPORT,Leasing /Transport Hire,Vehicle Management Leasing ,22.11.2021,16.12.2021,GPC11210000203,75.00
Stockport MBC,Services to People,Childrens & Educational Services,AMZNMKTPLACE AMAZON.CO,Furniture and Equipment,Environmental Services Technical Equipment ,18.11.2021,16.12.2021,GPC11210000204,49.99
Stockport MBC,Services to People,Childrens & Educational Services,PREMIER INN47127915,Care Payments,Social Community Care Supplies & Services  ,18.11.2021,16.12.2021,GPC11210000205,269.00
Stockport MBC,Services to People,Childrens & Educational Services,HOLIDAY INNS,Care Payments,Social Community Care Supplies & Services  ,20.11.2021,16.12.2021,GPC11210000206,652.50
Stockport MBC,Services to People,Childrens & Educational Services,TRAVELODGE GB0000,Care Payments,Social Community Care Supplies & Services  ,18.11.2021,16.12.2021,GPC11210000207,274.34
Stockport MBC,Services to People,Childrens & Educational Services,HOLIDAY INNS,Care Payments,Social Community Care Supplies & Services  ,16.11.2021,16.12.2021,GPC11210000208,804.00
Stockport MBC,Services to People,Childrens & Educational Services,PREMIER INN44521425,Care Payments,Social Community Care Supplies & Services  ,15.11.2021,16.12.2021,GPC11210000209,391.00
Stockport MBC,Services to People,Childrens & Educational Services,HOLIDAY INNS,Care Payments,Social Community Care Supplies & Services  ,09.11.2021,16.12.2021,GPC11210000210,732.00
Stockport MBC,Services to People,Childrens & Educational Services,LOGANAIR,Travelling Expenses,Human Resources Travel & Subsistence ,09.11.2021,16.12.2021,GPC11210000211,314.72
Stockport MBC,Services to People,Childrens & Educational Services,RENTALCARS.COM,Leasing /Transport Hire,Vehicle Management Leasing ,09.11.2021,16.12.2021,GPC11210000212,109.91
Stockport MBC,Services to People,Childrens & Educational Services,HOLIDAY INNS,Expenses and Allowances,Human Resources Training & Conferences ,06.11.2021,16.12.2021,GPC11210000213,"1,250.00"
Stockport MBC,Services to People,Childrens & Educational Services,1 AND 1 IONOS LTD,Information and Communications Technology,Information Communication Technology  ,27.11.2021,16.12.2021,GPC11210000214,12.00
Stockport MBC,Services to People,Childrens & Educational Services,BRITANNIA,Care Payments,Social Community Care Supplies & Services  ,25.11.2021,16.12.2021,GPC11210000215,-69.00
Stockport MBC,Services to People,Childrens & Educational Services,TRAINLINE,Travelling Expenses,Human Resources Travel & Subsistence ,23.11.2021,16.12.2021,GPC11210000216,19.15
Stockport MBC,Services to People,Childrens & Educational Services,TRAVELODGE GB0000,Care Payments,Social Community Care Supplies & Services  ,23.11.2021,16.12.2021,GPC11210000217,298.82
Stockport MBC,Services to People,Childrens & Educational Services,STOCKPORT MBC DOM,Care Payments,Social Community Care Supplies & Services  ,18.11.2021,16.12.2021,GPC11210000218,73.33
Stockport MBC,Services to People,Childrens & Educational Services,HOLIDAY INNS,Care Payments,Social Community Care Supplies & Services  ,12.11.2021,16.12.2021,GPC11210000219,277.00
Stockport MBC,Services to People,Childrens & Educational Services,ZOOM.US 888-799-9666,Information and Communications Technology,Information Communication Technology  ,11.11.2021,16.12.2021,GPC11210000220,11.99
Stockport MBC,Services to People,Childrens & Educational Services,PREMIER INN44521425,Care Payments,Social Community Care Supplies & Services  ,10.11.2021,16.12.2021,GPC11210000221,100.89
Stockport MBC,Services to People,Childrens & Educational Services,ARGOS LTD,Care Payments,Social Community Care Supplies & Services  ,09.11.2021,16.12.2021,GPC11210000222,222.95
Stockport MBC,Services to People,Childrens & Educational Services,TRAVELODGE GB0000,Care Payments,Social Community Care Supplies & Services  ,10.11.2021,16.12.2021,GPC11210000223,79.67
Stockport MBC,Services to People,Childrens & Educational Services,HOLIDAY INNS,Care Payments,Social Community Care Supplies & Services  ,09.11.2021,16.12.2021,GPC11210000224,760.00
Stockport MBC,Services to People,Childrens & Educational Services,STOCKPORT MBC DOM,Care Payments,Social Community Care Supplies & Services  ,05.11.2021,16.12.2021,GPC11210000225,115.00
Stockport MBC,Services to People,Childrens & Educational Services,EE TOPUP  VESTA,Care Payments,Social Community Care Supplies & Services  ,04.11.2021,16.12.2021,GPC11210000226,15.00
Stockport MBC,Services to People,Childrens & Educational Services,TRAVELODGE GB0000,Care Payments,Social Community Care Supplies & Services  ,04.11.2021,16.12.2021,GPC11210000227,228.14
Stockport MBC,Services to People,Childrens & Educational Services,HOLIDAY INNS,Care Payments,Social Community Care Supplies & Services  ,02.11.2021,16.12.2021,GPC11210000228,644.00
Stockport MBC,Services to Place,Central Support Costs,METRO TAXIS LIMITED,Leasing /Transport Hire,Vehicle Management Leasing ,09.11.2021,16.12.2021,GPC11210000229,16.50
Stockport MBC,Services to People,Childrens & Educational Services,AMZNMKTPLACE,Furniture and Equipment,Environmental Services Technical Equipment ,01.12.2021,16.12.2021,GPC11210000230,69.99
Stockport MBC,Services to People,Childrens & Educational Services,MENTIMETER,Staff Training,Human Resources  ,22.11.2021,16.12.2021,GPC11210000231,110.47
Stockport MBC,Services to People,Childrens & Educational Services,MENTIMETER,Staff Training,Human Resources  ,22.11.2021,16.12.2021,GPC11210000232,110.47
Stockport MBC,Services to People,Childrens & Educational Services,HIE MANCHESTER EAST,Staff Training,Human Resources  ,03.11.2021,16.12.2021,GPC11210000233,55.99
Stockport MBC,Services to People,Childrens & Educational Services,THETRAINLINE.COM,Staff Training,Human Resources  ,02.11.2021,16.12.2021,GPC11210000234,140.97
Stockport MBC,Services to People,Childrens & Educational Services,ASDA GROCERIES ONLINE,Catering Supplies,Catering Food & Beverages ,01.12.2021,16.12.2021,GPC11210000235,46.51
Stockport MBC,Services to People,Childrens & Educational Services,ASDA GROCERIES ONLINE,Catering Supplies,Catering Food & Beverages ,29.11.2021,16.12.2021,GPC11210000236,6.00
Stockport MBC,Services to People,Childrens & Educational Services,ASDA GROCERIES ONLINE,Catering Supplies,Catering Food & Beverages ,22.11.2021,16.12.2021,GPC11210000237,69.31
Stockport MBC,Services to People,Childrens & Educational Services,TESCO STORES 3378,Catering Supplies,Catering Food & Beverages ,15.11.2021,16.12.2021,GPC11210000238,3.83
Stockport MBC,Services to People,Childrens & Educational Services,WM MORRISONS STORE,Catering Supplies,Catering Food & Beverages ,11.11.2021,16.12.2021,GPC11210000239,22.41
Stockport MBC,Services to People,Childrens & Educational Services,ASDA GROCERIES ONLINE,Catering Supplies,Catering Food & Beverages ,08.11.2021,16.12.2021,GPC11210000240,70.99
Stockport MBC,Services to People,Childrens & Educational Services,WM MORRISONS STORE,Catering Supplies,Catering Food & Beverages ,01.11.2021,16.12.2021,GPC11210000241,14.80
Stockport MBC,Services to People,Childrens & Educational Services,MCDONALDS,Catering Supplies,Catering Food & Beverages ,11.11.2021,16.12.2021,GPC11210000242,12.05
Stockport MBC,Services to People,Childrens & Educational Services,NETFLIX.COM,Fees and Charges,Financial Services  ,10.11.2021,16.12.2021,GPC11210000243,13.99
Stockport MBC,Services to People,Childrens & Educational Services,KNUTSFORD STN TO,Fees and Charges,Financial Services  ,04.11.2021,16.12.2021,GPC11210000244,7.10
Stockport MBC,Services to People,Childrens & Educational Services,DISNEY PLUS,Fees and Charges,Financial Services  ,03.11.2021,16.12.2021,GPC11210000245,7.99
Stockport MBC,Services to People,Childrens & Educational Services,AMAZON.CO.UK 2V06E0C45,Library Equipment,Education Library Books ,10.11.2021,16.12.2021,GPC11210000246,20.44
Stockport MBC,Services to People,Childrens & Educational Services,FIRST INTUITION CAMBRI,Fees and Charges,Human Resources Training & Conferences ,09.11.2021,16.12.2021,GPC11210000247,-76.66
Stockport MBC,Services to People,Childrens & Educational Services,HFL NATIONAL PRIMARY,Fees and Charges,Human Resources Training & Conferences ,08.11.2021,16.12.2021,GPC11210000248,99.00
Stockport MBC,Services to People,Childrens & Educational Services,AMAZON.CO.UK Q46WH0DG5,Library Equipment,Education Library Books ,08.11.2021,16.12.2021,GPC11210000249,20.44
Stockport MBC,Services to People,Childrens & Educational Services,ZOOM.US 888-799-9666,Fees and Charges,Human Resources Training & Conferences ,08.11.2021,16.12.2021,GPC11210000250,119.90
Stockport MBC,Services to People,Adult Social Care,GROSVENOR HOUSE A JW,Expenses and Allowances,Human Resources Training & Conferences ,04.11.2021,16.12.2021,GPC11210000251,256.50
Stockport MBC,Services to People,Childrens & Educational Services,AMZNMKTPLACE AMAZON.CO,Furniture and Equipment,Environmental Services Technical Equipment ,18.11.2021,16.12.2021,GPC11210000252,99.82
Stockport MBC,Services to People,Childrens & Educational Services,STOCKPORT M B C,Repairs and Maintenance,"Works - Construction, Repair & Maintenance  ",15.11.2021,16.12.2021,GPC11210000253,115.00
Stockport MBC,Services to People,Childrens & Educational Services,AMZNMKTPLACE,Furniture and Equipment,Environmental Services Technical Equipment ,11.11.2021,16.12.2021,GPC11210000254,31.52
Stockport MBC,Services to People,Childrens & Educational Services,AMZNMKTPLACE,Furniture and Equipment,Environmental Services Technical Equipment ,05.11.2021,16.12.2021,GPC11210000255,114.99
Stockport MBC,Services to People,Childrens & Educational Services,AMZNMKTPLACE AMAZON.CO,Furniture and Equipment,Environmental Services Technical Equipment ,05.11.2021,16.12.2021,GPC11210000256,12.40
Stockport MBC,Services to People,Childrens & Educational Services,AMAZON PRIME 5Y5W73WZ5,Furniture and Equipment,Environmental Services Technical Equipment ,06.11.2021,16.12.2021,GPC11210000257,7.99
Stockport MBC,Services to People,Childrens & Educational Services,AMZNMKTPLACE,Furniture and Equipment,Environmental Services Technical Equipment ,07.11.2021,16.12.2021,GPC11210000258,12.48
Stockport MBC,Services to People,Childrens & Educational Services,AURAONLINEL,Furniture and Equipment,Environmental Services Technical Equipment ,03.11.2021,16.12.2021,GPC11210000259,72.30
Stockport MBC,Corporate and Support Services,Cultural & Related Services,STOCKPORT M B C,Publicity and Promotion,Arts & Leisure Services  ,30.11.2021,16.12.2021,GPC11210000260,21.00
Stockport MBC,Corporate and Support Services,Cultural & Related Services,AMAZON.CO.UK DF07F8A85,Library Equipment,Education Library Books ,17.11.2021,16.12.2021,GPC11210000261,63.93
Stockport MBC,Corporate and Support Services,Cultural & Related Services,AMAZON.CO.UK DV8W414N5,Library Equipment,Education Library Books ,02.11.2021,16.12.2021,GPC11210000262,45.93
Stockport MBC,Services to People,Public Health,ASDA STORES,Office Expenses,Stationery    ,04.11.2021,16.12.2021,GPC11210000263,12.60
Stockport MBC,Services to People,Adult Social Care,ALDI 84 773,Catering Supplies,Catering Food & Beverages ,25.11.2021,16.12.2021,GPC11210000264,24.15
Stockport MBC,Services to People,Adult Social Care,ALDI 84 773,Catering Supplies,Catering Food & Beverages ,17.11.2021,16.12.2021,GPC11210000265,26.40
Stockport MBC,Services to People,Adult Social Care,ALDI 84 773,Catering Supplies,Catering Food & Beverages ,02.11.2021,16.12.2021,GPC11210000266,42.02
Stockport MBC,Corporate and Support Services,Planning Services,JD SPORTS INTERNET,Furniture and Equipment,Environmental Services Technical Equipment ,17.11.2021,16.12.2021,GPC11210000267,58.99
Stockport MBC,Services to People,Childrens & Educational Services,WM MORRISONS STORE,Catering Supplies,Catering Food & Beverages ,19.11.2021,16.12.2021,GPC11210000268,2.00
Stockport MBC,Services to People,Childrens & Educational Services,POLAR FREEZE,Fees and Charges,Education  ,04.11.2021,16.12.2021,GPC11210000269,4.80
Stockport MBC,Services to People,Childrens & Educational Services,ARGOS LTD,Furniture and Equipment,Furniture & Soft Furnishings  ,25.11.2021,16.12.2021,GPC11210000270,193.95
Stockport MBC,Services to People,Childrens & Educational Services,PREMIER INN44521425,Care Payments,Social Community Care Supplies & Services  ,22.11.2021,16.12.2021,GPC11210000271,212.44
Stockport MBC,Services to People,Childrens & Educational Services,THETRAINLINE.COM,Travelling Expenses,Human Resources Travel & Subsistence ,19.11.2021,16.12.2021,GPC11210000272,24.11
Stockport MBC,Services to People,Childrens & Educational Services,THETRAINLINE.COM,Travelling Expenses,Human Resources Travel & Subsistence ,19.11.2021,16.12.2021,GPC11210000273,24.11
Stockport MBC,Services to People,Childrens & Educational Services,TRAINLINE.COM,Travelling Expenses,Human Resources Travel & Subsistence ,18.11.2021,16.12.2021,GPC11210000274,27.93
Stockport MBC,Services to People,Childrens & Educational Services,AMZNMKTPLACE,Repairs and Maintenance,"Works - Construction, Repair & Maintenance  ",09.11.2021,16.12.2021,GPC11210000275,5.98
Stockport MBC,Corporate and Support Services,Corporate & Democratic Core,TRAINLINE.COM,Travelling Expenses,Human Resources Travel & Subsistence ,05.11.2021,16.12.2021,GPC11210000276,78.03
Stockport MBC,Services to People,Childrens & Educational Services,AMAZON.CO.UK JK9SQ3TT5,Library Equipment,Education Library Books ,04.11.2021,16.12.2021,GPC11210000277,27.99
Stockport MBC,Services to People,Childrens & Educational Services,ARGOS LTD,Furniture and Equipment,Furniture & Soft Furnishings  ,02.11.2021,16.12.2021,GPC11210000278,-70.00
Stockport MBC,Services to People,Childrens & Educational Services,ARGOS LTD,Furniture and Equipment,Furniture & Soft Furnishings  ,02.11.2021,16.12.2021,GPC11210000279,70.00
Stockport MBC,Services to People,Childrens & Educational Services,ASDA SUPERSTORE,Catering Supplies,Catering Food & Beverages ,01.12.2021,16.12.2021,GPC11210000280,10.65
Stockport MBC,Services to People,Childrens & Educational Services,ZOOM.US 888-799-9666,Fees and Charges,"Works - Construction, Repair & Maintenance  ",26.11.2021,16.12.2021,GPC11210000281,14.39
Stockport MBC,Services to People,Childrens & Educational Services,ASDA SUPERSTORE,Catering Supplies,Catering Food & Beverages ,23.11.2021,16.12.2021,GPC11210000282,4.90
Stockport MBC,Services to People,Childrens & Educational Services,HOBBYCRAFT,Furniture and Equipment,Furniture & Soft Furnishings  ,19.11.2021,16.12.2021,GPC11210000283,3.00
Stockport MBC,Services to People,Childrens & Educational Services,ASDA SUPERSTORE,Catering Supplies,Catering Food & Beverages ,17.11.2021,16.12.2021,GPC11210000284,13.60
Stockport MBC,Services to People,Childrens & Educational Services,ASDA STORE 4422,Catering Supplies,Catering Food & Beverages ,10.11.2021,16.12.2021,GPC11210000285,8.70
Stockport MBC,Services to People,Childrens & Educational Services,CAFELITO,Catering Supplies,Catering Food & Beverages ,09.11.2021,16.12.2021,GPC11210000286,5.80
Stockport MBC,Services to People,Childrens & Educational Services,DOMINO S PIZZA,Catering Supplies,Catering Food & Beverages ,04.11.2021,16.12.2021,GPC11210000287,39.98
Stockport MBC,Services to People,Childrens & Educational Services,ASDA STORE 4422,Catering Supplies,Catering Food & Beverages ,03.11.2021,16.12.2021,GPC11210000288,0.72
Stockport MBC,Services to People,Childrens & Educational Services,ASDA SUPERSTORE,Catering Supplies,Catering Food & Beverages ,02.11.2021,16.12.2021,GPC11210000289,4.00
Stockport MBC,Corporate and Support Services,Central Support Costs,AMZNMKTPLACE,Furniture and Equipment,Environmental Services Technical Equipment ,25.11.2021,16.12.2021,GPC11210000290,22.41
Stockport MBC,Corporate and Support Services,Central Support Costs,REPLACEBASE,Furniture and Equipment,Environmental Services Technical Equipment ,17.11.2021,16.12.2021,GPC11210000291,220.25
Stockport MBC,Corporate and Support Services,Central Support Costs,REPLACEBASE,Furniture and Equipment,Environmental Services Technical Equipment ,17.11.2021,16.12.2021,GPC11210000292,9.82
Stockport MBC,Services to Place,Highways & Transport Services,TRAINLINE.COM,Staff Training,Human Resources  ,17.11.2021,16.12.2021,GPC11210000293,102.51
Stockport MBC,Services to Place,Highways & Transport Services,TRAINLINE.COM,Staff Training,Human Resources  ,17.11.2021,16.12.2021,GPC11210000294,156.64
Stockport MBC,Services to Place,Highways & Transport Services,WHITE RIBBON UK,Publicity and Promotion,Arts & Leisure Services  ,08.11.2021,16.12.2021,GPC11210000295,362.95
Stockport MBC,Corporate and Support Services,Corporate & Democratic Core,HORWOOD HOUSE HOTEL,Travelling Expenses,Human Resources Travel & Subsistence ,08.11.2021,16.12.2021,GPC11210000296,85.00
Stockport MBC,Corporate and Support Services,Corporate & Democratic Core,WWW.EMAP.COM,Library Equipment,Education Library Books ,08.11.2021,16.12.2021,GPC11210000297,332.00
Stockport MBC,Corporate and Support Services,Central Support Costs,ST JOHN AMBULANCE,Staff Training,Human Resources  ,04.11.2021,16.12.2021,GPC11210000298,384.00
Stockport MBC,Services to Place,Highways & Transport Services,SP   PHOTOSYMBOLS LTD,Publicity and Promotion,Facilities & Management Services  ,03.11.2021,16.12.2021,GPC11210000299,360.00
Stockport MBC,Services to Place,Highways & Transport Services,WATERFRONT CONFERENCE,Staff Training,Human Resources  ,03.11.2021,16.12.2021,GPC11210000300,99.00
Stockport MBC,Services to Place,Highways & Transport Services,PREMIER INN 44524320,Staff Training,Human Resources  ,02.11.2021,16.12.2021,GPC11210000301,-8.00
Stockport MBC,Services to People,Childrens & Educational Services,STOCKPORT MBC DOM,Fees and Charges,Education  ,23.11.2021,16.12.2021,GPC11210000302,35.00
Stockport MBC,Corporate and Support Services,Cultural & Related Services,ASDA STORES 4840,Catering Supplies,Catering  ,01.12.2021,16.12.2021,GPC11210000303,26.98
Stockport MBC,Corporate and Support Services,Cultural & Related Services,SAINSBURY'S S/MKT,Catering Supplies,Catering  ,22.11.2021,16.12.2021,GPC11210000304,6.15
Stockport MBC,Corporate and Support Services,Cultural & Related Services,SAINSBURY'S S/MKT,Catering Supplies,Catering  ,22.11.2021,16.12.2021,GPC11210000305,2.25
Stockport MBC,Corporate and Support Services,Cultural & Related Services,WWW.HGS.CO.UK,Catering Supplies,Catering Food & Beverages ,16.11.2021,16.12.2021,GPC11210000306,151.57
